bitfinex-derivatives/quotes_BTCF0:USTF0_20210104
["timestamp","ask_amount","ask_price","bid_price","bid_amount"]
[1609725801809,0.67136872,33182.0,33164.0,3.7323]
[1609725801810,0.52578065,33174.0,33164.0,3.7323]
[1609725802011,0.52578065,33174.0,33173.0,0.14033567]
[1609725802211,0.75964174,33176.0,33173.0,0.14033567]
[1609725802212,0.63261996,33175.0,33173.0,0.14033567]
[1609725802614,0.63261996,33175.0,33173.0,3.52393567]
[1609725804114,0.09,33174.0,33173.0,3.52207091]
[1609725804313,0.09,33174.0,33173.0,0.13847091]
[1609725804515,0.09,33174.0,33173.0,4.08337091]
[1609725805813,0.14033567,33185.0,33173.0,4.08337091]
[1609725806014,0.14033567,33185.0,33184.0,0.14033567]
[1609725806216,0.67108739,33190.0,33184.0,0.82413567]
[1609725807017,0.52825322,33191.0,33184.0,0.82413567]
[1609725807215,0.24135,33192.0,33184.0,0.82413567]
[1609725807816,0.15005,33192.0,33184.0,0.82413567]
[1609725808016,0.15005,33192.0,33191.0,0.14033567]
[1609725809016,0.24165,33192.0,33191.0,0.14033567]
[1609725809516,0.24165,33192.0,33191.0,4.93423567]
[1609725810118,0.15005,33192.0,33191.0,4.93423567]
[1609725810917,0.14033567,33194.0,33191.0,4.93423567]
[1609725811118,0.0915,33193.0,33191.0,4.93423567]
[1609725811320,0.22751,33193.0,33191.0,4.93423567]
[1609725811519,0.13601,33193.0,33191.0,4.92923567]
[1609725812520,0.0903,33192.0,33191.0,4.92923567]
[1609725812721,0.13601,33193.0,33191.0,4.92923567]
[1609725813824,0.0913,33192.0,33191.0,4.92923567]
[1609725815623,0.13601,33193.0,33191.0,4.92923567]
[1609725816523,0.52646597,33199.0,33191.0,4.92923567]
[1609725816723,0.52646597,33199.0,33191.0,0.13533567]
[1609725817928,0.52646597,33199.0,33198.0,0.14033567]
[1609725818727,0.52663182,33200.0,33198.0,0.14033567]
[1609725819328,0.52726693,33203.0,33198.0,0.14033567]
[1609725819527,0.52726693,33203.0,33198.0,0.13847195]
[1609725820128,0.52726693,33203.0,33202.0,0.14033567]
[1609725828842,0.27216693,33203.0,33202.0,0.14033567]
[1609725840058,0.63216014,33207.0,33202.0,0.14033567]
[1609725840459,0.005,33208.0,33202.0,0.14033567]
[1609725842258,0.005,33208.0,33207.0,0.14033567]
[1609725844062,0.14033567,33240.0,33207.0,0.14033567]
[1609725844261,0.14033567,33240.0,33230.0,4.8458]
[1609725845462,0.1771,33245.0,33230.0,4.8458]
[1609725846164,0.1771,33245.0,33244.0,0.14033567]
[1609725846365,0.2894,33246.0,33244.0,0.14033567]
[1609725848469,0.2894,33246.0,33244.0,3.53603567]
[1609725851574,0.2894,33246.0,33244.0,0.14033567]
[1609725854380,0.2894,33246.0,33244.0,0.13533567]
[1609725856585,0.2894,33246.0,33244.0,3.96153567]
[1609725856784,0.2894,33246.0,33244.0,0.13533567]
[1609725858086,0.2894,33246.0,33245.0,4.5257]
[1609725859686,0.3782,33246.0,33245.0,4.5257]
[1609725860688,0.2894,33246.0,33245.0,4.5257]
[1609725861990,1.1555,33257.0,33244.0,0.13533567]
[1609725862188,1.1555,33257.0,33256.0,0.14033567]
[1609725863393,0.1555,33257.0,33256.0,0.14033567]
[1609725863594,0.14033567,33264.0,33256.0,3.75313567]
[1609725864193,0.14033567,33264.0,33260.0,0.14033567]
[1609725864895,0.361,33261.0,33260.0,0.14033567]
[1609725871804,0.005,33261.0,33260.0,0.14033567]
[1609725889432,0.005,33261.0,33260.0,3.90623567]
[1609725890432,0.10787,33280.0,33260.0,3.90623567]
[1609725890633,0.71987749,33282.0,33260.0,3.90623567]
[1609725890836,0.1771,33282.0,33280.0,4.612]
[1609725891033,0.5436503,33284.0,33280.0,4.612]
[1609725892334,0.5436503,33284.0,33283.0,0.14033567]
[1609725893736,0.54393896,33286.0,33283.0,0.14033567]
[1609725895041,0.71575161,33287.0,33283.0,0.14033567]
[1609725895239,0.54882161,33287.0,33283.0,0.14033567]
[1609725895842,0.6588307,33294.0,33283.0,0.14033567]
[1609725896439,0.6588307,33294.0,33293.0,0.14033567]
[1609725897242,1.04090187,33303.0,33293.0,0.14033567]
[1609725897243,0.6601046,33302.0,33293.0,0.14033567]
[1609725897843,0.66226461,33300.0,33293.0,0.14033567]
[1609725898444,0.66226461,33300.0,33299.0,0.14033567]
[1609725898845,0.6595612,33303.0,33299.0,0.14033567]
[1609725899444,0.11235,33304.0,33299.0,0.14033567]
[1609725900444,0.11235,33304.0,33303.0,0.14033567]
[1609725901050,0.11235,33304.0,33303.0,0.13533567]
[1609725901646,0.11235,33304.0,33287.0,0.10702]
[1609725901846,0.11235,33304.0,33290.0,4.1646]
[1609725902445,0.25268567,33304.0,33303.0,0.14033567]
[1609725905447,1.25268567,33304.0,33303.0,0.14033567]
[1609725907048,1.11235,33304.0,33303.0,0.14033567]
[1609725907349,0.11235,33304.0,33303.0,0.14033567]
[1609725907549,0.83028261,33309.0,33303.0,0.14033567]
[1609725908450,0.83028261,33309.0,33308.0,0.14033567]
[1609725908750,0.83028261,33309.0,33308.0,0.63623567]
[1609725908953,0.83028261,33309.0,33308.0,0.14033567]
[1609725909552,0.91978261,33309.0,33308.0,0.14033567]
[1609725909753,0.91978261,33309.0,33308.0,3.55063567]
[1609725910154,0.83028261,33309.0,33308.0,3.55063567]
[1609725910553,0.65318261,33309.0,33308.0,3.55063567]
[1609725911054,0.90725893,33312.0,33308.0,3.55063567]
[1609725911458,0.1771,33323.0,33308.0,3.55063567]
[1609725911459,0.005,33320.0,33308.0,3.55063567]
[1609725912255,0.0902,33319.0,33308.0,3.55063567]
[1609725912456,0.24407,33319.0,33318.0,0.14033567]
[1609725913958,0.15387,33319.0,33318.0,0.14033567]
[1609725915058,0.24477,33319.0,33318.0,0.14033567]
[1609725915462,0.15387,33319.0,33318.0,0.14033567]
[1609725916462,0.24337,33319.0,33318.0,0.14033567]
[1609725917361,0.15387,33319.0,33318.0,0.14033567]
[1609725917560,0.005,33320.0,33318.0,0.14033567]
[1609725918360,0.0908,33319.0,33318.0,0.14033567]
[1609725918560,0.0908,33319.0,33318.0,4.23943567]
[1609725919761,0.005,33320.0,33318.0,4.23943567]
[1609725920963,0.0897,33319.0,33318.0,4.23943567]
[1609725922866,0.005,33320.0,33318.0,4.23943567]
[1609725923966,0.0893,33319.0,33318.0,4.23943567]
[1609725924166,0.0893,33319.0,33318.0,0.14033567]
[1609725924369,0.005,33320.0,33318.0,0.14033567]
[1609725925470,0.0904,33319.0,33318.0,0.14033567]
[1609725925670,0.005,33320.0,33318.0,0.14033567]
[1609725926874,0.0909,33319.0,33318.0,0.14033567]
[1609725927274,0.005,33320.0,33318.0,0.14033567]
[1609725928276,0.0898,33319.0,33318.0,0.14033567]
[1609725928974,0.005,33320.0,33318.0,0.14033567]
[1609725930075,0.0901,33319.0,33318.0,0.14033567]
[1609725930277,0.005,33320.0,33318.0,0.14033567]
[1609725931178,0.0912,33319.0,33318.0,0.14033567]
[1609725931376,0.005,33320.0,33318.0,0.14033567]
[1609725936084,0.005,33320.0,33310.0,0.15115]
[1609725936286,0.005,33320.0,33303.0,0.13066]
[1609725936485,0.14033567,33307.0,33305.0,0.14033567]
[1609725937486,1.0,33306.0,33305.0,0.14033567]
[1609725938487,1.0,33306.0,33301.0,0.14033567]
[1609725939388,1.0,33302.0,33301.0,0.14033567]
[1609725939788,1.0,33302.0,33296.0,0.14675]
[1609725939989,1.0,33302.0,33289.0,3.90928]
[1609725940494,1.0,33302.0,33301.0,0.14033567]
[1609725941092,1.0,33302.0,33289.0,3.90928]
[1609725941692,0.14958,33307.0,33289.0,3.90928]
[1609725942496,0.14958,33307.0,33299.0,0.14033567]
[1609725942895,0.16806813,33307.0,33299.0,0.14033567]
[1609725943399,1.0,33303.0,33299.0,0.14033567]
[1609725943998,1.0,33303.0,33289.0,3.90928]
[1609725944599,1.0,33303.0,33294.0,0.14033567]
[1609725945299,0.56836816,33302.0,33294.0,0.14033567]
[1609725945499,1.0,33295.0,33294.0,0.14033567]
[1609725945700,1.0,33295.0,33294.0,4.99973567]
[1609725947402,0.14033567,33298.0,33294.0,4.99973567]
[1609725950310,0.55274882,33297.0,33294.0,4.99973567]
[1609725950509,0.70572882,33297.0,33294.0,4.99973567]
[1609725951011,0.5527518,33296.0,33294.0,4.99973567]
[1609725954820,0.55262343,33295.0,33294.0,4.99973567]
[1609725955419,1.55262343,33295.0,33294.0,4.99973567]
[1609725955922,2.66170798,33295.0,33294.0,4.99973567]
[1609725957521,1.66170798,33295.0,33294.0,4.99973567]
[1609725958925,1.2157421,33295.0,33294.0,0.14033567]
[1609725959527,0.15298,33297.0,33294.0,0.14033567]
[1609725959725,0.55226481,33299.0,33296.0,4.3857]
[1609725960126,0.55224975,33303.0,33296.0,4.3857]
[1609725960625,0.55224975,33303.0,33302.0,0.14033567]
[1609725961127,0.55221962,33305.0,33302.0,0.14033567]
[1609725961827,0.55221962,33305.0,33296.0,4.3857]
[1609725962627,0.55221962,33305.0,33299.0,0.14033567]
[1609725963030,0.55221962,33305.0,33296.0,4.3857]
[1609725963331,1.0,33300.0,33296.0,4.3857]
[1609725963731,1.11291,33300.0,33296.0,4.3857]
[1609725964634,0.14033567,33297.0,33296.0,4.52603567]
[1609725965735,0.14033567,33297.0,33296.0,0.14033567]
[1609725966738,0.14033567,33297.0,33296.0,4.59833567]
[1609725968441,0.11291,33300.0,33296.0,4.59833567]
[1609725968941,1.0,33301.0,33296.0,4.59833567]
[1609725969441,0.14033567,33302.0,33296.0,4.59833567]
[1609725970645,0.14033567,33302.0,33301.0,0.14033567]
[1609725970844,0.81225563,33307.0,33301.0,0.14033567]
[1609725972347,0.66315942,33303.0,33301.0,0.14033567]
[1609725972647,0.80349509,33303.0,33301.0,0.14033567]
[1609725972948,0.14033567,33303.0,33301.0,0.14033567]
[1609725974149,0.55286102,33304.0,33301.0,0.14033567]
[1609725975755,0.55311345,33303.0,33301.0,0.14033567]
[1609725976654,0.14033567,33302.0,33301.0,0.14033567]
[1609725976854,0.69364497,33302.0,33301.0,0.14033567]
[1609725977354,0.14033567,33302.0,33301.0,0.14033567]
[1609725983766,1.10983042,33303.0,33301.0,0.14033567]
[1609725983968,0.66393435,33303.0,33301.0,0.14033567]
[1609725984970,0.55371963,33305.0,33301.0,0.14033567]
[1609725985771,0.66442665,33306.0,33301.0,0.14033567]
[1609725985772,0.55371161,33306.0,33304.0,3.6405]
[1609725986271,0.70328342,33307.0,33304.0,3.6405]
[1609725986775,0.14958,33307.0,33306.0,0.14033567]
[1609725986972,0.66441703,33308.0,33306.0,0.14033567]
[1609725987173,0.55369513,33307.0,33306.0,0.14033567]
[1609725990979,1.21885927,33307.0,33306.0,0.14033567]
[1609725991882,0.66516414,33307.0,33306.0,0.14033567]
[1609725992183,1.66533132,33307.0,33306.0,0.14033567]
[1609725992782,1.21948354,33307.0,33306.0,0.14033567]
[1609725998092,0.5543194,33307.0,33306.0,0.14033567]
[1609725999695,1.21986986,33307.0,33306.0,0.14033567]
[1609726000897,0.5543194,33307.0,33306.0,0.14033567]
[1609726001897,1.21971038,33307.0,33306.0,0.14033567]
[1609726003299,0.5543194,33307.0,33306.0,0.14033567]
[1609726003900,0.55436581,33308.0,33306.0,0.14033567]
[1609726005803,0.55436581,33308.0,33293.0,3.778]
[1609726006908,0.55436581,33308.0,33303.0,0.14033567]
[1609726007407,1.55436581,33308.0,33303.0,0.14033567]
[1609726008910,1.55436581,33308.0,33307.0,0.14033567]
[1609726009410,0.55436581,33308.0,33307.0,0.14033567]
[1609726010917,0.97597732,33309.0,33307.0,0.14033567]
[1609726011614,3.40257058,33308.0,33307.0,0.14033567]
[1609726012715,3.40257058,33308.0,33301.0,4.7257]
[1609726012916,2.47864507,33308.0,33305.0,0.14033567]
[1609726013917,1.22006568,33306.0,33305.0,0.14033567]
[1609726014719,2.03382516,33306.0,33305.0,0.14033567]
[1609726014918,2.17416083,33306.0,33305.0,0.14033567]
[1609726015219,1.36040135,33306.0,33305.0,0.14033567]
[1609726015921,1.80624078,33306.0,33305.0,0.14033567]
[1609726017921,2.62141652,33306.0,33305.0,0.14033567]
[1609726020423,1.80624078,33306.0,33305.0,0.14033567]
[1609726023626,1.80624078,33306.0,33290.0,4.98896]
[1609726024026,2.62149046,33306.0,33290.0,4.98896]
[1609726024528,0.55597042,33295.0,33290.0,4.98896]
[1609726024927,0.55597042,33295.0,33290.0,0.14426]
[1609726025130,0.55597042,33295.0,33286.0,0.005]
[1609726025131,0.14033567,33291.0,33286.0,0.005]
[1609726025530,1.69635318,33291.0,33286.0,0.005]
[1609726026132,0.55605132,33289.0,33286.0,0.005]
[1609726026530,0.55604306,33290.0,33286.0,0.005]
[1609726027030,0.14033567,33287.0,33286.0,0.005]
[1609726029134,0.14033567,33287.0,33286.0,0.14533567]
[1609726030234,0.55604306,33290.0,33286.0,0.14533567]
[1609726031036,0.69637873,33290.0,33286.0,0.14533567]
[1609726031436,0.69637873,33290.0,33288.0,4.1153]
[1609726032439,0.14033567,33290.0,33288.0,4.1153]
[1609726032939,0.14033567,33290.0,33286.0,0.14533567]
[1609726034244,0.55617922,33291.0,33286.0,0.14533567]
[1609726034640,0.55612946,33293.0,33286.0,0.14533567]
[1609726035141,0.55612946,33293.0,33292.0,0.72033567]
[1609726035340,1.0,33298.0,33292.0,0.72033567]
[1609726035341,1.0,33298.0,33292.0,0.88038567]
[1609726035540,0.55598652,33300.0,33292.0,0.88038567]
[1609726036743,0.55595974,33301.0,33292.0,0.88038567]
[1609726037141,0.55595974,33301.0,33300.0,0.14033567]
[1609726040046,1.22378997,33301.0,33300.0,0.14033567]
[1609726041345,0.55595974,33301.0,33300.0,0.14033567]
[1609726042449,1.22379022,33301.0,33300.0,0.14033567]
[1609726044450,0.55595974,33301.0,33300.0,0.14033567]
[1609726045052,1.6696266,33301.0,33300.0,0.14033567]
[1609726045653,1.22378689,33301.0,33300.0,0.14033567]
[1609726046554,1.22378689,33301.0,33300.0,4.19043567]
[1609726047155,1.36412256,33301.0,33300.0,4.19043567]
[1609726047756,1.80997928,33301.0,33300.0,4.19043567]
[1609726047956,1.80997928,33301.0,33300.0,0.14033567]
[1609726049258,1.80997928,33301.0,33294.0,4.1095]
[1609726051164,0.14033567,33295.0,33294.0,4.1095]
[1609726051965,0.14033567,33295.0,33293.0,0.14033567]
[1609726053769,0.55661277,33294.0,33293.0,0.14033567]
[1609726053966,0.64641277,33294.0,33293.0,0.14033567]
[1609726054465,0.55661277,33294.0,33293.0,0.14033567]
[1609726054665,0.55661277,33294.0,33292.0,0.16005]
[1609726054865,0.55661277,33294.0,33286.0,0.005]
[1609726055066,1.67037826,33294.0,33286.0,0.005]
[1609726055265,0.14033567,33287.0,33286.0,0.005]
[1609726056768,0.23153567,33287.0,33286.0,0.005]
[1609726057169,0.14033567,33287.0,33286.0,0.005]
[1609726058670,0.23003567,33287.0,33286.0,0.005]
[1609726059170,0.14033567,33287.0,33286.0,0.005]
[1609726060170,0.23083567,33287.0,33286.0,0.005]
[1609726060770,0.14033567,33287.0,33286.0,0.005]
[1609726061875,0.23063567,33287.0,33286.0,0.005]
[1609726062174,0.14033567,33287.0,33286.0,0.005]
[1609726062876,4.35443567,33287.0,33286.0,0.005]
[1609726063078,4.35443567,33287.0,33256.0,4.7448]
[1609726063079,0.26967567,33287.0,33258.0,2.09546962]
[1609726063277,4.2145,33268.0,33261.0,0.14033567]
[1609726064476,4.2145,33268.0,33240.0,2.34604418]
[1609726064679,0.55543533,33262.0,33228.0,2.35362767]
[1609726065277,0.55543533,33262.0,33256.0,0.14033567]
[1609726065478,0.00388706,33257.0,33256.0,0.14033567]
[1609726066781,0.09408706,33257.0,33256.0,0.14033567]
[1609726066979,0.00388706,33257.0,33256.0,0.14033567]
[1609726067380,0.55559057,33257.0,33256.0,0.14033567]
[1609726073390,0.00934579,33265.0,33256.0,0.14033567]
[1609726073589,0.00434579,33265.0,33256.0,0.14033567]
[1609726075293,0.00434579,33265.0,33264.0,0.14033567]
[1609726078597,0.01848601,33267.0,33264.0,0.14033567]
[1609726079298,4.55653567,33265.0,33264.0,0.14033567]
[1609726081600,4.57501239,33265.0,33264.0,0.14033567]
[1609726081901,5.10555276,33265.0,33264.0,0.14033567]
[1609726082900,5.10555276,33265.0,33254.0,0.10879]
[1609726083101,5.12403087,33265.0,33254.0,0.10879]
[1609726083300,0.14033567,33255.0,33254.0,0.14033567]
[1609726094013,0.14033567,33255.0,33248.0,0.005]
[1609726094814,0.2962,33254.0,33248.0,0.005]
[1609726095415,0.2962,33254.0,33250.0,0.14033567]
[1609726096415,4.3121,33251.0,33250.0,0.14033567]
[1609726097420,4.45243567,33251.0,33250.0,0.14033567]
[1609726097716,4.45243567,33251.0,33248.0,0.005]
[1609726099419,1.0,33249.0,33248.0,0.005]
[1609726099820,5.9347,33249.0,33248.0,0.005]
[1609726105132,1.0,33249.0,33248.0,0.005]
[1609726105335,1.6819,33249.0,33248.0,0.005]
[1609726106336,1.6819,33249.0,33218.0,0.10958]
[1609726106536,0.0914,33248.0,33218.0,0.10958]
[1609726106736,4.3018,33234.0,33218.0,0.10958]
[1609726107136,0.15489,33234.0,33218.0,0.10958]
[1609726107335,0.15489,33234.0,33221.0,3.9]
[1609726107538,0.15489,33234.0,33221.0,4.04033567]
[1609726109437,0.15489,33234.0,33233.0,0.14033567]
[1609726109638,0.14033567,33240.0,33233.0,0.14033567]
[1609726109838,4.0187,33255.0,33233.0,0.14033567]
[1609726111540,4.0187,33255.0,33241.0,0.14033567]
[1609726113444,0.14033567,33242.0,33241.0,0.14033567]
[1609726120357,0.12653,33245.0,33241.0,0.14033567]
[1609726120756,1.95897026,33254.0,33241.0,0.14033567]
[1609726121457,1.0,33252.0,33245.0,0.14033567]
[1609726121756,1.13638,33252.0,33245.0,0.14033567]
[1609726123459,0.14033567,33246.0,33245.0,0.14033567]
[1609726125862,0.71323567,33246.0,33245.0,0.14033567]
[1609726126263,0.71323567,33246.0,33231.0,0.005]
[1609726127466,1.5729,33246.0,33239.0,0.14033567]
[1609726128165,1.0,33246.0,33239.0,0.14033567]
[1609726128365,4.6322,33240.0,33231.0,0.005]
[1609726129567,0.76483567,33232.0,33231.0,0.005]
[1609726131466,1.76483567,33232.0,33231.0,0.005]
[1609726131967,1.14033567,33232.0,33231.0,0.005]
[1609726133571,0.14033567,33232.0,33231.0,0.005]
[1609726135973,0.10529,33242.0,33231.0,0.005]
[1609726136374,0.66298666,33244.0,33231.0,0.005]
[1609726137678,0.14033567,33232.0,33231.0,0.005]
[1609726141686,0.14033567,33232.0,33231.0,0.14533567]
[1609726142084,0.14033567,33232.0,33231.0,0.005]
[1609726143488,1.14033567,33232.0,33231.0,0.005]
[1609726145489,0.14033567,33232.0,33231.0,0.005]
[1609726146792,1.8079742,33232.0,33231.0,0.005]
[1609726148394,1.66763853,33232.0,33231.0,0.005]
[1609726149693,1.8079742,33232.0,33231.0,0.005]
[1609726149995,1.36131695,33232.0,33231.0,0.005]
[1609726150695,1.80796599,33232.0,33231.0,0.005]
[1609726153597,1.66763032,33232.0,33231.0,0.5758]
[1609726154300,0.01868626,33232.0,33231.0,0.5758]
[1609726154704,0.00388505,33234.0,33231.0,0.5758]
[1609726156003,0.17054475,33236.0,33231.0,0.5758]
[1609726156503,0.16666,33236.0,33231.0,0.5758]
[1609726156702,0.00389006,33237.0,33231.0,0.5758]
[1609726157705,0.00389006,33237.0,33236.0,0.14033567]
[1609726161612,0.00388942,33238.0,33236.0,0.14033567]
[1609726162013,0.00388896,33239.0,33236.0,0.14033567]
[1609726165016,0.00388896,33239.0,33238.0,4.1551]
[1609726166719,0.00388837,33241.0,33238.0,4.1551]
[1609726167718,0.00388837,33241.0,33240.0,0.14033567]
[1609726167918,0.84686707,33243.0,33240.0,0.14033567]
[1609726167919,0.29508837,33243.0,33240.0,0.14033567]
[1609726168522,0.00388832,33242.0,33240.0,0.14033567]
[1609726169423,0.29508828,33243.0,33240.0,0.14033567]
[1609726172926,0.00388735,33242.0,33240.0,0.14033567]
[1609726174229,0.29508655,33243.0,33240.0,0.14033567]
[1609726174633,0.2912,33243.0,33240.0,0.14033567]
[1609726175834,0.29508557,33243.0,33240.0,0.14033567]
[1609726177139,0.2912,33243.0,33240.0,0.14033567]
[1609726181239,0.29508413,33243.0,33240.0,0.14033567]
[1609726181839,0.00388413,33243.0,33240.0,0.14033567]
[1609726182039,0.00388413,33243.0,33242.0,4.1186]
[1609726182238,0.00388413,33243.0,33240.0,0.14033567]
[1609726182441,0.00388366,33245.0,33242.0,3.7975]
[1609726183840,0.00388366,33245.0,33244.0,0.14033567]
[1609726184642,0.1771,33250.0,33244.0,0.14033567]
[1609726184643,0.00388366,33246.0,33244.0,0.14033567]
[1609726186945,0.00388155,33252.0,33244.0,0.14033567]
[1609726187146,0.00388155,33252.0,33247.0,3.549]
[1609726187746,0.00388155,33252.0,33246.0,0.10656]
[1609726187948,0.00388155,33252.0,33251.0,0.14033567]
[1609726190448,0.81346148,33258.0,33251.0,0.14033567]
[1609726190449,0.00388013,33257.0,33251.0,0.14033567]
[1609726190850,0.00387027,33269.0,33251.0,0.14033567]
[1609726191048,0.0907,33267.0,33257.0,4.9925]
[1609726191249,0.00387027,33270.0,33257.0,4.9925]
[1609726191853,0.00387027,33270.0,33264.0,0.14033567]
[1609726192250,0.0957,33265.0,33264.0,0.14033567]
[1609726192448,0.0957,33265.0,33264.0,3.93513567]
[1609726193251,0.005,33265.0,33264.0,3.93513567]
[1609726194150,0.005,33265.0,33264.0,0.14033567]
[1609726195552,0.005,33265.0,33264.0,3.99353567]
[1609726197452,0.005,33265.0,33264.0,0.14033567]
[1609726210174,0.11253,33281.0,33264.0,0.14033567]
[1609726210576,0.00384884,33286.0,33279.0,5.0191]
[1609726210776,0.00384884,33286.0,33264.0,0.14033567]
[1609726210978,0.10455,33286.0,33284.0,5.0152]
[1609726211178,0.10455,33286.0,33264.0,0.14033567]
[1609726211378,0.10455,33286.0,33278.0,4.3806]
[1609726211977,0.10455,33286.0,33271.0,0.1589]
[1609726212177,0.10455,33286.0,33285.0,0.14033567]
[1609726212377,0.10455,33286.0,33285.0,3.91133567]
[1609726212578,0.10455,33286.0,33285.0,0.14033567]
[1609726214080,0.24488567,33286.0,33271.0,0.1589]
[1609726214780,0.27488567,33286.0,33271.0,0.1589]
[1609726215482,0.27488567,33286.0,33274.0,4.8852]
[1609726216082,0.13455,33286.0,33283.0,0.14033567]
[1609726217683,0.13455,33286.0,33274.0,4.8852]
[1609726217684,0.54983038,33284.0,33274.0,4.8852]
[1609726218085,0.54983038,33284.0,33283.0,0.14033567]
[1609726218986,1.20992048,33284.0,33283.0,0.14033567]
[1609726219387,1.20992048,33284.0,33272.0,4.4319]
[1609726220086,1.20992048,33284.0,33278.0,0.14033567]
[1609726220488,0.94128772,33286.0,33271.0,0.1589]
[1609726220489,0.00385368,33278.0,33271.0,0.1589]
[1609726220887,0.00385368,33278.0,33262.0,0.12159]
[1609726221088,0.00385428,33274.0,33258.0,3.3792]
[1609726221890,0.00385439,33271.0,33258.0,3.3792]
[1609726222091,0.12764439,33271.0,33264.0,0.14033567]
[1609726222592,0.12764439,33271.0,33268.0,4.4895]
[1609726222992,0.00385444,33270.0,33268.0,4.4895]
[1609726223894,0.12764444,33271.0,33268.0,4.4895]
[1609726224093,0.12764444,33271.0,33269.0,0.14033567]
[1609726225395,0.12379,33271.0,33269.0,0.14033567]
[1609726226097,0.26412567,33271.0,33269.0,0.14033567]
[1609726233707,0.00386229,33270.0,33269.0,0.14033567]
[1609726234002,0.018576,33270.0,33269.0,0.14033567]
[1609726234201,0.018576,33270.0,33264.0,0.14033567]
[1609726234802,0.83464838,33271.0,33264.0,0.14033567]
[1609726235703,0.00386251,33268.0,33264.0,0.14033567]
[1609726236105,4.55223567,33265.0,33264.0,0.14033567]
[1609726236308,4.55609852,33265.0,33264.0,0.14033567]
[1609726236705,4.55609852,33265.0,33248.0,0.005]
[1609726236905,0.69306501,33265.0,33248.0,0.005]
[1609726237307,4.1456,33258.0,33248.0,0.005]
[1609726238108,4.1456,33258.0,33253.0,0.14033567]
[1609726239810,0.00386811,33257.0,33253.0,0.14033567]
[1609726240209,0.14033567,33254.0,33253.0,0.14033567]
[1609726241111,3.99563567,33254.0,33253.0,0.14033567]
[1609726242515,0.71272625,33254.0,33253.0,0.14033567]
[1609726245220,0.1589725,33254.0,33253.0,0.14033567]
[1609726245821,0.14420577,33254.0,33253.0,0.14033567]
[1609726246825,0.15898221,33254.0,33253.0,0.14033567]
[1609726249124,0.14033567,33254.0,33253.0,0.14033567]
[1609726253229,0.14033567,33254.0,33218.0,2.19614307]
[1609726253429,0.26563567,33254.0,33218.0,2.19614307]
[1609726253630,3.6573,33221.0,33218.0,2.19614307]
[1609726253831,0.13499,33243.0,33218.0,2.19614307]
[1609726254034,0.13499,33243.0,33218.0,2.35284307]
[1609726254232,4.2676,33223.0,33218.0,0.1567]
[1609726254432,4.2676,33223.0,33222.0,0.14033567]
[1609726255432,0.00385998,33241.0,33222.0,0.14033567]
[1609726255632,4.064,33233.0,33222.0,0.14033567]
[1609726256334,0.14033567,33223.0,33222.0,0.14033567]
[1609726260936,4.24873567,33223.0,33222.0,0.14033567]
[1609726261138,4.24873567,33223.0,33204.0,4.2831]
[1609726262439,4.1084,33223.0,33217.0,0.14033567]
[1609726263039,4.1084,33223.0,33217.0,0.27784567]
[1609726263243,1.0,33235.0,33217.0,0.27784567]
[1609726263644,0.995,33230.0,33217.0,0.27784567]
[1609726263845,0.995,33230.0,33217.0,0.27684567]
[1609726264044,1.0,33233.0,33217.0,0.27684567]
[1609726264245,0.6898,33231.0,33211.0,4.1432]
[1609726264444,0.091,33230.0,33212.0,0.14033567]
[1609726264645,3.5195,33220.0,33209.0,0.14282]
[1609726266449,0.14033567,33210.0,33209.0,0.28315567]
[1609726270655,0.86143567,33210.0,33209.0,0.28315567]
[1609726272863,0.86143567,33210.0,33175.0,2.1972865]
[1609726273062,0.14033567,33210.0,33175.0,2.1972865]
[1609726273261,4.5439,33195.0,33175.0,2.1972865]
[1609726274262,4.5389,33195.0,33175.0,2.1972865]
[1609726274461,4.5389,33195.0,33194.0,0.14033567]
[1609726275264,0.14033567,33197.0,33194.0,0.14033567]
[1609726276463,4.5841,33195.0,33194.0,0.14033567]
[1609726278166,4.5841,33195.0,33183.0,0.1259]
[1609726278565,4.5841,33195.0,33189.0,0.14033567]
[1609726278866,4.5841,33195.0,33183.0,0.1259]
[1609726279665,4.5841,33195.0,33169.0,3.6296]
[1609726280465,4.5841,33195.0,33189.0,0.14033567]
[1609726281665,4.5841,33195.0,33175.0,0.13907]
[1609726282466,4.5841,33195.0,33187.0,0.14033567]
[1609726284274,0.10522,33196.0,33187.0,0.14033567]
[1609726284475,0.10522,33196.0,33175.0,0.13907]
[1609726284476,0.10522,33196.0,33194.0,0.14033567]
[1609726285075,0.0914,33195.0,33194.0,0.14033567]
[1609726285275,0.13537,33203.0,33194.0,0.14033567]
[1609726285475,0.15449,33195.0,33194.0,0.14033567]
[1609726286476,0.38642567,33195.0,33194.0,0.14033567]
[1609726286977,0.29482567,33195.0,33194.0,0.14033567]
[1609726288078,0.38612567,33195.0,33194.0,0.14033567]
[1609726288278,0.29482567,33195.0,33194.0,0.14033567]
[1609726292086,4.72522567,33195.0,33194.0,0.14033567]
[1609726292987,4.81642567,33195.0,33194.0,0.14033567]
[1609726293187,4.72522567,33195.0,33194.0,0.14033567]
[1609726294089,4.81522567,33195.0,33194.0,0.14033567]
[1609726294292,4.72522567,33195.0,33194.0,0.14033567]
[1609726296994,4.72522567,33195.0,33184.0,0.13941]
[1609726297196,4.72522567,33195.0,33178.0,0.005]
[1609726297596,0.29482567,33195.0,33178.0,0.005]
[1609726297996,5.0039,33186.0,33178.0,0.005]
[1609726298497,0.14033567,33179.0,33178.0,0.005]
[1609726298698,0.83693567,33179.0,33178.0,0.005]
[1609726299498,0.14033567,33179.0,33178.0,0.005]
[1609726302001,0.14033567,33179.0,33161.0,4.3126]
[1609726302601,4.1348,33181.0,33166.0,0.14033567]
[1609726303000,4.1348,33181.0,33166.0,0.26959567]
[1609726304000,0.0893,33180.0,33166.0,0.26959567]
[1609726304504,0.14033567,33167.0,33166.0,0.26959567]
[1609726306003,0.23113567,33167.0,33166.0,0.26959567]
[1609726307108,0.14033567,33167.0,33166.0,0.26959567]
[1609726308108,0.23193567,33167.0,33166.0,0.12926]
[1609726308308,0.14033567,33167.0,33166.0,0.12926]
[1609726308710,0.14033567,33167.0,33161.0,0.14033567]
[1609726309611,0.0906,33166.0,33161.0,0.14033567]
[1609726310411,0.14033567,33167.0,33161.0,0.14033567]
[1609726310611,0.14033567,33162.0,33161.0,0.14033567]
[1609726312015,0.14033567,33162.0,33158.0,0.14453]
[1609726312414,0.14033567,33162.0,33161.0,0.005]
[1609726313315,1.0,33177.0,33161.0,0.005]